bitfinex/quotes_ETHUSD_20250602
["timestamp","ask_amount","ask_price","bid_price","bid_amount"]
[1748872098770,5.20638336,2503.0,2502.5,3.99599178]
[1748872098913,0.3745894,2503.0,2502.5,8.0]
[1748872099118,0.3745894,2503.0,2502.4,0.84795946]
[1748872099119,0.3745894,2503.0,2502.9,3.99536537]
[1748872099434,0.3745894,2503.0,2502.9,11.99536537]
[1748872099616,0.3745894,2503.0,2502.9,12.79916537]
[1748872100136,0.3745894,2503.0,2502.9,17.75216537]
[1748872100953,0.37440466,2504.1,2503.5,0.55]
[1748872101158,0.37440466,2504.1,2504.0,12.74371022]
[1748872102227,0.37440466,2504.1,2504.0,8.7501]
[1748872102427,0.37440466,2504.1,2503.6,0.752]
[1748872102656,0.37440466,2504.1,2503.7,13.24499739]
[1748872102815,0.37440466,2504.1,2503.7,13.24508824]
[1748872103190,0.37440466,2504.1,2503.7,9.251]
[1748872103312,0.37440466,2504.1,2503.8,4.03386297]
[1748872103516,0.37440466,2504.1,2504.0,3.99361022]
[1748872103715,0.37440466,2504.1,2503.9,3.99368358]
[1748872104047,0.37440466,2504.1,2504.0,3.99361022]
[1748872104360,0.37440466,2504.1,2503.9,8.0]
[1748872105526,0.37440466,2504.1,2503.9,12.394]
[1748872105811,0.37440466,2504.1,2503.8,4.393]
[1748872106431,3.99371434,2504.0,2503.6,10.003]
[1748872106627,4.80464464,2504.1,2503.6,10.003]
[1748872106628,0.81118303,2504.1,2503.6,0.752]
[1748872106833,3.99417094,2503.7,2503.3,8.7756]
[1748872107377,3.99423843,2503.7,2503.3,8.7756]
[1748872107572,3.99423843,2503.7,2503.3,0.7756]
[1748872107873,10.27355855,2504.0,2503.3,8.7756]
[1748872108019,3.99419091,2503.7,2503.3,8.7756]
[1748872108219,14.26720705,2504.0,2503.5,8.0]
[1748872108518,3.9936259,2504.0,2503.5,11.99431172]
[1748872108755,0.81118303,2504.1,2503.4,8.0]
[1748872108969,3.99395467,2503.8,2503.4,8.0]
[1748872109194,3.99395467,2503.8,2503.4,9.251]
[1748872109342,3.99427318,2503.6,2503.4,9.251]
[1748872109690,3.99401591,2503.8,2503.4,9.251]
[1748872109890,10.64796321,2504.1,2503.4,13.24555153]
[1748872110090,3.99369656,2504.0,2503.5,3.99440782]
[1748872110312,0.37440466,2504.1,2503.7,3.99407985]
[1748872110459,0.37440466,2504.1,2503.8,8.0]
[1748872110800,0.37440466,2504.1,2504.0,12.78641022]
[1748872111392,0.37440466,2504.1,2503.7,4.76939971]
[1748872113050,11.08785855,2504.0,2503.4,0.7786]
[1748872113357,3.99377289,2503.9,2503.4,0.7786]
[1748872114081,3.99392459,2503.9,2503.4,0.7786]
[1748872114242,3.99371339,2504.0,2503.4,0.7786]
[1748872114443,3.99393234,2503.8,2503.4,0.7786]
[1748872115077,3.99418989,2503.7,2503.4,0.7786]
[1748872115490,4.19713265,2503.6,2503.4,0.7786]
[1748872115796,11.0926908,2503.6,2503.0,0.7788]
[1748872115998,3.99465173,2503.4,2502.7,2.0298]
[1748872116179,0.20286154,2503.3,2502.8,8.0]
[1748872116381,3.99481362,2503.3,2502.7,6.02539083]
[1748872116616,3.99474047,2503.3,2502.8,3.99549354]
[1748872116895,3.99474047,2503.3,2502.7,2.0298]
[1748872116896,4.19787407,2503.2,2502.7,2.0298]
[1748872117078,3.99424828,2503.6,2502.7,2.0298]
[1748872117391,3.99552501,2502.8,2502.7,1.251]
[1748872118213,3.99552501,2502.8,2502.4,0.7835]
[1748872118499,3.99575491,2502.7,2502.4,0.7835]
[1748872118703,3.99591623,2502.6,2502.4,0.7835]
[1748872118864,10.27355855,2503.1,2502.4,0.7835]
[1748872119064,3.99571902,2502.7,2502.1,8.7789]
[1748872119264,10.27355855,2503.4,2502.4,3.99602011]
[1748872119504,3.99442648,2503.5,2502.6,0.7968]
[1748872119689,4.77863607,2503.8,2502.6,0.7968]
[1748872119690,4.19755914,2503.4,2502.7,5.24661784]
[1748872120018,5.1846,2503.8,2502.7,1.251]
[1748872120225,3.99420255,2503.7,2503.0,3.99519537]
[1748872120372,3.99399578,2503.8,2503.1,3.99504294]
[1748872120577,3.99361022,2504.0,2503.0,0.8101]
[1748872120794,3.99442736,2503.5,2503.0,0.8101]
[1748872121107,3.99429724,2503.6,2503.0,0.8101]
[1748872121305,3.99449491,2503.5,2503.0,0.8101]
[1748872121707,3.99410026,2503.7,2503.0,0.8101]
[1748872121880,0.40573352,2503.6,2503.1,4.03494482]
[1748872122079,0.20286676,2503.6,2503.1,8.0]
[1748872122395,0.20286676,2503.6,2503.5,8.0]
[1748872122571,0.20286676,2503.6,2503.3,0.7656]
[1748872123224,3.99447757,2503.5,2503.3,0.7656]
[1748872123427,0.20286722,2503.4,2503.3,0.7656]
[1748872123591,3.99447757,2503.5,2503.3,0.7656]
[1748872123926,4.19720465,2503.6,2503.3,0.7656]
[1748872124212,0.20286676,2503.6,2503.3,0.7656]
[1748872124568,0.20286676,2503.6,2503.3,8.7656]
[1748872124769,0.20286778,2503.5,2503.4,8.0]
[1748872124984,0.20286676,2503.6,2503.5,3.99440782]
[1748872125213,0.20286676,2503.6,2503.5,8.0]
[1748872126073,0.20286676,2503.6,2503.3,8.7656]
[1748872126288,0.20286676,2503.6,2503.3,12.76029564]
[1748872126694,0.20286676,2503.6,2503.3,8.7656]
[1748872126904,0.20286676,2503.6,2503.4,3.99450231]
[1748872127113,0.20286676,2503.6,2503.4,3.99448548]
[1748872128116,0.20286676,2503.6,2503.3,12.76026134]
[1748872128315,0.20286676,2503.6,2503.3,0.7656]
[1748872128517,4.19722964,2503.6,2503.3,0.7656]
[1748872128919,0.20286676,2503.6,2503.3,4.76031225]
[1748872129222,0.20286676,2503.6,2503.5,13.36470782]
[1748872129419,0.20286676,2503.6,2503.5,8.8203]
[1748872129827,0.20286676,2503.6,2503.5,0.8203]
[1748872130126,0.20286676,2503.6,2503.5,4.8546452]
[1748872130294,0.20286676,2503.6,2503.5,5.4046452]
[1748872130485,0.20286676,2503.6,2503.5,5.36470782]
[1748872130686,0.20286676,2503.6,2503.5,4.81470782]
[1748872131213,0.20286676,2503.6,2503.5,4.85464411]
[1748872131416,0.20286676,2503.6,2503.5,4.81470782]
[1748872131664,0.20286676,2503.6,2503.5,0.8203]
[1748872131984,0.20286676,2503.6,2503.5,4.85464644]
[1748872132184,0.20286676,2503.6,2503.5,4.81470782]
[1748872132688,0.20286676,2503.6,2503.5,4.85464411]
[1748872132901,0.20286676,2503.6,2503.5,5.4046424]
[1748872133100,0.20286676,2503.6,2503.5,5.36470782]
[1748872133853,0.37440466,2504.1,2503.5,5.36470782]
[1748872133854,0.37440466,2504.1,2504.0,12.54361022]
[1748872134046,0.37440466,2504.1,2504.0,17.70231022]
[1748872134551,0.37440466,2504.1,2504.0,8.7687]
[1748872135861,0.37440466,2504.1,2504.0,13.31231022]
[1748872137054,0.37440466,2504.1,2504.0,8.0]
[1748872137722,3.99401559,2503.8,2503.6,9.389]
[1748872137935,3.9943179,2503.6,2503.3,2.0112]
[1748872138136,3.99443107,2503.5,2503.3,0.7662]
[1748872138340,3.99456738,2503.4,2503.3,0.7662]
[1748872138511,3.99454334,2503.5,2503.2,1.245]
[1748872138940,0.755,2504.0,2503.3,4.03460387]
[1748872139141,3.99411255,2503.7,2503.3,0.03994471]
[1748872139326,3.99378288,2503.9,2503.4,3.99447977]
[1748872139647,3.99425184,2503.6,2503.2,1.245]
[1748872139851,0.9116755,2503.9,2503.2,1.245]
[1748872140035,3.99427193,2503.6,2503.2,1.245]
[1748872140206,0.9116755,2503.9,2503.2,1.245]
[1748872140408,3.99416174,2503.7,2503.2,5.23988637]
[1748872140665,4.36786344,2504.1,2503.5,8.0]
[1748872140666,0.37440466,2504.1,2503.5,8.0]
[1748872140812,0.37440466,2504.1,2503.9,8.0]
[1748872141014,0.37440466,2504.1,2503.9,3.99363723]
[1748872141321,0.37440466,2504.1,2504.0,14.54081022]
[1748872142559,0.37440466,2504.1,2504.0,13.29581022]
[1748872142754,0.37440466,2504.1,2504.0,18.93881022]
[1748872142978,0.37440466,2504.1,2504.0,8.7522]
[1748872143266,0.37440466,2504.1,2504.0,8.0]
[1748872144088,0.37440466,2504.1,2504.0,11.99361022]
[1748872144437,0.37440466,2504.1,2504.0,8.0]
[1748872144769,0.37440466,2504.1,2504.0,12.402]
[1748872144924,0.37440466,2504.1,2504.0,17.70601022]
[1748872147285,0.37440466,2504.1,2504.0,8.7604]
[1748872147888,0.37440466,2504.1,2504.0,12.75401022]
[1748872149161,0.37440466,2504.1,2504.0,8.0]
[1748872149360,0.37440466,2504.1,2504.0,11.99361022]
[1748872149757,0.37440466,2504.1,2504.0,8.0]
[1748872150068,0.37440466,2504.1,2504.0,12.58353984]
[1748872150260,0.37440466,2504.1,2504.0,12.54361022]
[1748872151059,0.37440466,2504.1,2504.0,8.0]
[1748872151260,0.37440466,2504.1,2503.9,1.244]
[1748872151261,0.81117529,2504.1,2503.9,1.244]
[1748872151559,0.37440466,2504.1,2503.9,1.244]
[1748872151759,0.37440466,2504.1,2503.9,9.244]
[1748872151964,0.37440466,2504.1,2503.9,1.244]
[1748872152162,0.37440466,2504.1,2503.9,5.23770229]
[1748872152374,0.37440466,2504.1,2504.0,16.95361022]
[1748872153861,0.37440466,2504.1,2504.0,8.0]
[1748872154469,0.37440466,2504.1,2504.0,11.99361022]
[1748872156297,0.37440466,2504.1,2504.0,12.54361022]
[1748872156500,0.37440466,2504.1,2504.0,13.30451022]
[1748872158030,0.37440466,2504.1,2504.0,17.71651022]
[1748872158178,0.37440466,2504.1,2504.0,12.75451022]
[1748872158377,0.37440466,2504.1,2504.0,17.16751022]
[1748872158576,0.37440466,2504.1,2503.7,1.244]
[1748872158977,0.37440466,2504.1,2504.0,11.99361022]
[1748872159173,0.37440466,2504.1,2504.0,12.419]
[1748872159409,0.37440466,2504.1,2504.0,8.0]
[1748872159618,4.3678554,2504.1,2504.0,8.0]
[1748872159808,0.37440466,2504.1,2504.0,8.0]
[1748872159994,0.37440466,2504.1,2504.0,11.99361022]
[1748872160190,0.37440466,2504.1,2504.0,8.0]
[1748872160915,0.37440466,2504.1,2504.0,11.99361022]
[1748872161213,0.37440466,2504.1,2504.0,8.0]
[1748872161420,3.99400662,2503.8,2503.3,5.25765978]
[1748872161583,3.99361022,2504.0,2503.3,1.263]
[1748872161919,10.32998694,2503.5,2502.6,5.25973003]
[1748872162088,3.99511719,2503.1,2502.6,9.70773003]
[1748872162288,3.99512691,2503.1,2502.6,5.712]
[1748872162518,3.99495848,2503.2,2502.7,11.99560477]
[1748872162722,3.99548489,2502.9,2502.6,1.264]
[1748872163039,3.9953117,2503.0,2502.6,1.264]
[1748872163257,10.81198226,2503.2,2502.6,1.264]
[1748872163425,3.99486742,2503.3,2502.8,3.99550636]
[1748872163964,0.8252,2503.4,2502.7,0.03995068]
[1748872164159,0.8252,2503.4,2502.6,1.264]
[1748872164338,0.8252,2503.4,2502.9,0.7801]
[1748872164538,0.8252,2503.4,2503.1,8.0]
[1748872164900,0.8252,2503.4,2503.2,3.99483562]
[1748872165106,0.8029,2503.7,2503.1,11.99501756]
[1748872165319,3.99384526,2503.9,2503.4,3.99443896]
[1748872165537,3.99417096,2503.7,2503.3,8.0]
[1748872165742,0.7518,2503.7,2502.4,0.7984]
[1748872165901,10.32998694,2503.5,2502.4,6.5084]
[1748872166105,3.99492756,2503.2,2502.6,3.99574485]
[1748872166316,3.99495082,2503.2,2502.6,4.451]
[1748872166518,3.99503163,2503.2,2502.7,8.0]
[1748872166713,0.7518,2503.4,2502.7,8.8245]
[1748872166942,4.77177139,2503.7,2503.1,11.99492331]
[1748872167105,3.99432667,2503.6,2503.1,11.99504477]
[1748872167302,3.99443524,2503.5,2503.1,8.0]
[1748872167616,0.7776,2503.7,2503.0,8.0]
[1748872167617,3.99457066,2503.4,2503.0,8.0]
[1748872167805,0.7776,2503.7,2503.0,8.0]
[1748872168005,3.99472238,2503.4,2502.9,8.0]
[1748872168202,4.77169959,2503.7,2502.8,8.0]
[1748872168415,0.8019,2503.4,2502.8,1.264]
[1748872168630,4.7964964,2503.4,2502.8,1.264]
[1748872168929,4.7964964,2503.4,2502.1,0.01]
[1748872168930,3.99648309,2502.2,2502.1,0.01]
[1748872169129,0.8019,2502.9,2502.1,0.01]
[1748872169130,0.8019,2502.8,2502.1,0.01]
[1748872169346,0.8019,2503.4,2502.1,0.04995607]
[1748872169520,3.9953132,2503.0,2502.5,3.99599677]
[1748872169720,10.32998694,2503.3,2502.6,9.264]
[1748872170040,5.10810767,2503.2,2502.8,8.0]
[1748872170242,4.79662352,2503.4,2502.6,9.264]
[1748872170549,3.99487712,2503.3,2502.8,8.0]
[1748872170713,4.7964741,2503.4,2502.9,3.99527352]
[1748872170908,0.8019,2503.4,2503.0,0.03994635]
[1748872171248,0.8019,2503.4,2503.0,8.0]
[1748872171425,0.8019,2503.4,2502.8,8.47444576]
[1748872171619,0.8019,2503.4,2503.0,8.0]
[1748872171843,0.8019,2503.4,2503.0,3.99519162]
[1748872172143,3.99426025,2503.6,2503.1,3.99493525]
[1748872172451,3.99426025,2503.6,2503.0,3.99520575]
[1748872172452,0.7842,2503.7,2503.0,9.264]
[1748872172749,3.99464931,2503.4,2503.0,9.264]
[1748872173043,4.77832233,2503.7,2503.0,9.264]
[1748872173246,3.99432593,2503.6,2503.2,8.0]
[1748872173565,0.7842,2503.7,2503.2,8.0]
[1748872173767,0.7842,2503.7,2503.3,0.03994177]
[1748872173967,0.7842,2503.7,2503.2,8.0]
[1748872174112,11.11418694,2503.7,2503.0,9.264]
[1748872174314,3.994754,2503.3,2503.0,1.264]
[1748872174606,0.833,2503.2,2502.8,8.03994704]
[1748872174859,3.99511814,2503.1,2502.6,9.73775507]
[1748872175138,4.82789932,2503.2,2502.7,8.0]
[1748872175320,4.82799297,2503.2,2502.8,0.03995121]
[1748872175532,0.833,2503.2,2502.8,0.03995121]
[1748872175734,4.82797205,2503.2,2502.8,0.03995121]
[1748872175908,0.833,2503.2,2502.8,0.03995121]
[1748872176105,4.82798416,2503.2,2502.8,0.03995121]
[1748872176325,3.99474876,2503.3,2502.8,3.99545607]
[1748872176524,0.7578,2503.5,2502.7,8.0]
[1748872176743,0.7578,2503.5,2503.0,8.0]
[1748872176947,3.99464413,2503.4,2503.0,8.0]
[1748872177146,0.7578,2503.5,2503.0,12.472]
[1748872177357,0.7786,2503.8,2503.1,0.86904533]
[1748872177662,3.99414527,2503.7,2503.1,4.82411595]
[1748872177859,0.7786,2503.8,2503.1,0.8291]
[1748872178022,3.99436238,2503.6,2503.1,4.82406183]
[1748872178222,3.99436408,2503.6,2503.1,4.8241399]
[1748872178422,3.99417774,2503.7,2503.3,8.0]
[1748872178854,4.77255684,2503.8,2503.3,8.03994169]
[1748872179161,0.7786,2503.8,2503.1,0.8291]
[1748872179457,0.7786,2503.8,2503.2,7.95]
[1748872179827,3.99431639,2503.6,2503.3,4.465]
[1748872180028,5.24981106,2503.8,2503.3,4.465]
[1748872180229,3.99417889,2503.7,2503.3,4.465]
[1748872180433,3.99456508,2503.5,2503.3,4.465]
[1748872180749,3.99457124,2503.4,2502.9,0.8007]
[1748872180956,0.7721,2503.3,2503.0,3.99517033]
[1748872181155,0.7721,2503.7,2503.1,0.03994661]
[1748872181464,0.7691,2504.0,2503.2,4.464]
[1748872181628,3.99404652,2503.8,2503.3,11.99463585]
[1748872181828,0.7691,2504.0,2503.6,11.99415988]
[1748872182025,0.37440466,2504.1,2503.6,12.464]
[1748872182244,3.99370369,2504.0,2503.7,8.0]
[1748872182929,3.99408874,2503.7,2502.3,2.0692]
[1748872183266,3.99616368,2502.4,2502.3,1.264]
[1748872183426,4.76806715,2502.8,2502.3,1.264]
[1748872183427,3.99569611,2502.7,2502.3,1.264]
[1748872183763,3.99568466,2502.7,2502.3,5.737]
[1748872183935,3.99576332,2502.7,2502.3,5.737]
[1748872184142,3.99616368,2502.4,2502.3,13.737]
[1748872184358,4.47255755,2502.7,2502.3,5.737]
[1748872184559,3.99588732,2502.6,2502.3,5.737]
[1748872184759,0.7725,2502.8,2502.3,5.737]
[1748872185090,4.76809612,2502.8,2502.3,9.73329777]
[1748872185284,3.99527332,2503.0,2502.3,5.737]
[1748872185285,3.99524779,2503.0,2502.3,5.737]
[1748872185486,0.7561,2503.1,2502.6,3.99584432]
[1748872185687,3.99493023,2503.2,2502.7,8.51056605]
[1748872185854,3.99505324,2503.1,2502.7,4.475]
[1748872186057,3.99475392,2503.3,2502.8,11.99545275]
[1748872186253,0.7561,2503.4,2503.0,3.99506492]
[1748872186446,1.31230448,2504.0,2503.1,0.03994682]
[1748872186761,3.99424828,2503.6,2503.2,8.0]
[1748872186955,0.8256,2503.8,2503.2,8.0]
[1748872187158,3.99428252,2503.6,2503.2,8.0]
[1748872187394,4.81960128,2503.8,2503.2,8.0]
[1748872187558,3.99425572,2503.6,2503.2,8.0]
[1748872187953,0.8256,2503.8,2503.2,8.0]
[1748872188293,11.15558694,2503.8,2502.8,0.55]
[1748872188490,3.99452916,2503.5,2503.1,8.0]
[1748872188661,3.99459329,2503.4,2503.0,8.0]
[1748872188861,1.51493727,2503.7,2503.1,0.03994579]
[1748872189068,3.99427039,2503.6,2503.1,3.99493552]
[1748872189451,3.99440974,2503.5,2503.1,3.99493552]
[1748872189656,0.8256,2503.8,2503.0,8.0]
[1748872189857,3.99437312,2503.6,2503.1,4.469]
[1748872190088,3.99437312,2503.6,2503.1,8.46396786]
[1748872190257,3.99444464,2503.5,2503.2,8.0]
[1748872190457,11.15558694,2503.8,2503.2,8.0]
[1748872190655,0.7838,2503.6,2502.9,4.466]
[1748872190861,1.26132521,2503.9,2503.4,3.99452891]
[1748872191087,3.99394073,2503.8,2503.4,8.4665657]
[1748872191291,0.7838,2503.9,2503.5,4.03425837]
[1748872191479,3.99376894,2504.0,2503.5,3.99431814]
[1748872191653,3.99385964,2503.9,2503.6,1.29]
[1748872191882,4.95597411,2504.0,2503.6,1.29]
[1748872192054,3.99379797,2503.9,2503.6,1.29]
[1748872192279,0.96229729,2504.0,2503.6,1.29]
[1748872192592,3.99388508,2503.9,2503.6,1.29]
[1748872192797,3.99383063,2503.9,2503.7,4.467]
[1748872193009,3.99389006,2503.9,2503.7,4.467]
[1748872193685,3.99392922,2503.8,2503.7,4.467]
[1748872193887,3.99386007,2503.9,2503.7,4.467]
[1748872194294,3.99392922,2503.8,2503.7,4.467]
[1748872194659,3.99408874,2503.7,2503.6,1.29]
[1748872194999,4.81798874,2503.7,2503.6,1.29]
[1748872195167,3.99424828,2503.6,2503.0,1.29]
[1748872195366,3.99559563,2502.8,2502.3,0.7568]
[1748872195602,3.99559563,2502.8,2502.2,3.99643741]
[1748872195603,0.7694,2502.6,2502.2,3.9964044]
[1748872195775,3.99648309,2502.2,2502.1,0.01]
[1748872196554,4.81658309,2502.2,2502.1,0.01]
[1748872196920,3.9960403,2502.5,2502.1,0.01]
[1748872196921,0.8242,2502.5,2502.1,0.01]
[1748872197102,4.82023677,2502.5,2502.1,0.01]
[1748872197460,11.63621062,2502.5,2502.1,0.01]
[1748872197704,14.32647003,2502.2,2502.1,0.01]
[1748872197996,3.9964045,2502.3,2502.1,0.01]
[1748872198183,1.30622368,2502.5,2502.1,0.01]
[1748872198385,0.7983,2503.2,2502.1,0.56]
[1748872198572,11.12828694,2503.2,2502.3,0.55]
[1748872198770,3.99539152,2502.9,2502.4,12.48]
[1748872198982,3.99504614,2503.1,2502.6,8.0]
[1748872198983,3.99508613,2503.1,2502.6,8.0]
[1748872199294,0.7983,2503.2,2502.7,3.99560124]
[1748872199486,4.79321609,2503.2,2502.8,4.48]
[1748872199685,0.7983,2503.2,2502.8,4.48]
[1748872199867,3.99477162,2503.3,2502.8,4.48]
[1748872199868,3.99476617,2503.3,2502.8,4.48]
[1748872200066,11.11888694,2503.5,2502.8,4.48]
[1748872200268,11.11888694,2503.5,2502.5,1.291]
[1748872200269,10.32998694,2503.2,2502.5,9.291]
[1748872200602,3.99524801,2503.0,2502.7,8.0]
[1748872200794,11.11888694,2503.5,2502.7,8.0]
[1748872200976,3.99490002,2503.2,2502.7,11.99561451]
[1748872201169,0.7889,2503.5,2502.8,3.99552501]
[1748872201476,0.7889,2503.5,2502.7,8.0]
[1748872201676,0.7889,2503.5,2502.9,3.99525143]
[1748872201882,0.7889,2503.5,2503.0,4.478]
[1748872202081,3.99488654,2503.2,2502.5,1.291]
[1748872202278,10.32998694,2503.3,2502.6,4.479]
[1748872202478,3.9955376,2502.8,2502.5,1.291]
[1748872202700,3.99548631,2502.9,2502.5,1.291]
[1748872202909,3.99548631,2502.9,2502.6,8.0]
[1748872203109,3.9955275,2502.8,2502.5,1.291]
[1748872203318,3.9955275,2502.8,2501.9,0.7707]
[1748872203319,10.32998694,2502.7,2501.9,0.7707]
[1748872203538,4.81429753,2502.8,2502.3,3.99632338]
[1748872203685,10.32998694,2502.7,2502.1,0.01]
[1748872203886,0.8187,2502.8,2502.1,0.01]
[1748872203887,3.99648309,2502.2,2502.1,0.01]
[1748872204129,6.62816243,2502.2,2502.1,0.01]
[1748872205286,0.7994,2502.2,2502.1,0.01]
[1748872205491,0.7773,2502.5,2502.1,0.01]
[1748872205824,3.99648309,2502.2,2502.1,0.01]
[1748872206123,3.99639563,2502.3,2502.1,0.01]
[1748872206333,0.7773,2502.5,2502.1,0.01]
[1748872206632,3.99638286,2502.3,2502.1,0.01]
[1748872206819,1.5103169,2502.4,2502.1,0.01]
[1748872206820,3.99648309,2502.2,2502.1,0.01]
[1748872207541,3.99640792,2502.3,2502.1,0.01]
[1748872207691,5.50653257,2502.4,2502.1,0.01]
[1748872208025,3.99616368,2502.4,2502.1,0.01]
[1748872208255,3.99648309,2502.2,2502.1,0.01]
[1748872208605,1.51034506,2502.3,2502.1,0.01]
[1748872208901,3.99648309,2502.2,2502.1,0.01]
[1748872209913,4.76888309,2502.2,2502.1,0.01]
[1748872210308,15.09887003,2502.2,2502.1,0.01]
[1748872211147,15.09887003,2502.2,2501.1,0.01]
[1748872211148,3.99808092,2501.2,2501.1,0.01]
[1748872211316,0.87914324,2501.2,2501.1,0.01]
[1748872211641,3.99734345,2501.7,2501.1,0.01]
[1748872211851,0.7954,2501.8,2501.2,3.99808092]
[1748872212004,3.99718478,2501.8,2501.3,1.291]
[1748872212204,3.99687947,2502.0,2501.4,8.49272769]
[1748872212428,3.99666517,2502.1,2501.6,3.99732447]
[1748872212740,3.99666517,2502.1,2501.6,3.99744163]
[1748872212913,3.99688011,2502.0,2501.5,11.99753406]
[1748872213131,0.8788518,2502.1,2501.5,11.99753406]
[1748872213132,3.99696375,2501.9,2501.5,11.99753406]
[1748872213444,0.7898,2501.5,2501.2,8.0]
[1748872213655,0.7898,2501.5,2501.1,0.01]
[1748872213656,3.99776962,2501.4,2501.1,0.01]
[1748872213808,4.78746576,2501.5,2501.1,8.01]
[1748872214123,3.99807859,2501.3,2501.1,0.01]
[1748872214459,15.11746477,2501.5,2501.1,0.01]
[1748872214657,6.29922431,2501.5,2501.1,0.01]
[1748872214802,3.99802399,2501.3,2501.1,0.01]
[1748872215004,3.99808092,2501.2,2501.1,0.01]
[1748872215232,3.99799103,2501.3,2501.1,0.01]
[1748872215428,3.99808092,2501.2,2501.1,0.01]
[1748872215636,15.12765633,2501.2,2501.1,0.01]
[1748872216373,15.12765633,2501.2,2500.1,0.01]
[1748872216374,0.8296,2500.5,2500.1,0.01]
[1748872216534,4.82888063,2500.5,2500.1,0.01]
[1748872216733,4.82883348,2500.5,2500.1,0.01]
[1748872217072,3.99959279,2500.3,2499.7,4.00039046]
[1748872217230,0.48288335,2500.4,2499.7,4.00039046]
[1748872217438,0.8296,2500.5,2499.8,0.04000006]
[1748872217642,0.8296,2500.5,2500.0,3.99988553]
[1748872217838,0.8296,2500.5,2499.9,4.00009501]
[1748872217839,3.9994272,2500.4,2499.9,4.00009501]
[1748872218165,3.99945643,2500.4,2499.8,0.04000006]
[1748872218366,4.82881338,2500.5,2500.0,3.99998186]
[1748872218537,0.48288134,2500.4,2500.0,3.99999113]
[1748872218737,0.7918,2500.8,2500.1,3.99975602]
[1748872218951,10.32998694,2500.7,2500.1,3.99975602]
[1748872219247,3.99912153,2500.6,2499.8,12.00018273]
[1748872219451,3.9994749,2500.4,2499.9,5.29114757]
[1748872219787,10.32998694,2500.2,2499.2,0.8173]
[1748872219932,1.96593738,2500.2,2499.7,8.0]
[1748872220134,4.79132848,2500.3,2499.8,4.0002512]
[1748872220372,11.12178694,2500.3,2499.5,1.291]
[1748872220579,3.99968002,2500.2,2499.6,4.00053802]
[1748872220737,3.99968002,2500.2,2499.7,4.00044954]
[1748872220937,15.20897571,2500.1,2499.4,1.336]
[1748872221264,4.00011624,2500.0,2499.5,8.0]
[1748872221463,11.20909006,2500.1,2499.6,8.0]
[1748872221783,1.97508645,2500.0,2499.6,12.00056245]
[1748872222018,1.97508645,2500.0,2499.7,4.00047038]
[1748872222476,1.97508645,2500.0,2499.6,12.00055428]
[1748872222780,0.7918,2500.3,2499.6,8.0]
[1748872222931,0.7918,2500.3,2500.2,3.99968002]
[1748872223135,8.53889704,2500.7,2500.0,3.99985908]
[1748872223371,3.99972571,2500.2,2499.8,8.0]
[1748872223578,3.99975745,2500.2,2499.7,8.0]
[1748872223777,3.99996207,2500.1,2499.6,4.00056052]
[1748872223980,3.99971804,2500.2,2499.7,4.00043037]
[1748872224191,3.99998338,2500.1,2499.3,8.04000505]
[1748872224401,0.39999834,2500.0,2499.6,4.00054467]
[1748872224536,0.39999834,2500.0,2499.6,8.0]
[1748872224741,10.32998694,2500.3,2499.3,8.0]
[1748872225050,3.99978027,2500.2,2499.7,4.00033097]
[1748872225379,0.8036,2500.4,2499.2,1.337]
[1748872225579,4.00006877,2500.0,2499.5,4.00071005]
[1748872225794,4.00091869,2499.5,2499.1,0.01]
[1748872225996,10.32998694,2499.6,2499.1,0.01]
[1748872226199,0.8256,2499.8,2499.1,0.01]
[1748872226370,4.00051144,2499.7,2499.2,4.00117204]
[1748872226573,2.37143177,2499.7,2499.2,4.0012804]
[1748872226806,2.37143177,2499.7,2499.1,0.01]
[1748872227095,0.8256,2499.8,2499.1,4.01139337]
[1748872227398,4.00049482,2499.7,2499.2,5.33820827]
[1748872227807,4.79271335,2499.3,2499.1,0.01]
[1748872228010,0.7915,2499.6,2499.1,0.01]
[1748872228161,1.27069805,2499.6,2499.1,4.01140865]
[1748872228362,1.27069805,2499.6,2499.3,4.0010273]
[1748872228697,0.801,2499.9,2499.4,0.04001005]
[1748872228861,0.7612,2500.5,2500.1,3.99976381]
[1748872229066,3.99961715,2500.3,2499.8,4.00024172]
[1748872229262,4.00007236,2500.0,2499.7,4.563]
[1748872229467,10.32998694,2500.1,2499.7,8.56340549]
[1748872229668,0.7706,2500.0,2499.3,2.1179]
[1748872229897,4.77070816,2500.0,2499.3,2.1179]
[1748872230117,0.7706,2500.0,2499.3,2.1179]
[1748872230402,0.7706,2500.3,2499.4,0.04000713]
[1748872230580,1.11005869,2500.2,2499.9,4.00014131]
[1748872230760,1.11005869,2500.2,2499.5,4.562]
[1748872230761,1.11005869,2500.2,2499.8,4.00024605]
[1748872230961,10.32998694,2500.1,2499.4,4.00085507]
[1748872231162,4.00002384,2500.0,2499.5,4.00070892]
[1748872231398,10.32998694,2500.1,2499.4,1.337]
[1748872231601,4.00033522,2499.8,2499.4,9.337]
[1748872231767,11.09588694,2499.8,2499.3,9.337]
[1748872231965,0.7659,2499.8,2499.4,8.0]
[1748872232159,0.7659,2499.8,2499.3,1.337]
[1748872232360,4.00089193,2499.5,2499.2,1.337]
[1748872232560,1.43308789,2499.5,2499.2,1.337]
[1748872232814,14.33102464,2499.4,2499.1,0.01]
[1748872233301,14.33099341,2499.4,2499.1,0.01]
[1748872233507,0.784,2499.3,2499.1,0.01]
[1748872233706,4.0012804,2499.2,2499.1,0.01]
[1748872233862,5.91292235,2499.2,2499.1,0.01]
[1748872234865,1.91164195,2499.2,2499.1,0.01]
[1748872235203,0.784,2499.3,2499.1,0.01]
[1748872235399,1.43308789,2499.5,2499.1,0.01]
[1748872235602,4.0012804,2499.2,2499.1,0.01]
[1748872236201,4.8284804,2499.2,2499.1,0.01]
[1748872236865,0.7947,2499.1,2497.4,0.7781]
[1748872237087,15.12756901,2498.2,2497.4,0.7781]
[1748872237286,15.12756901,2498.2,2497.1,0.8295]
[1748872237287,11.12468694,2498.2,2497.1,0.8295]